bitfinex-derivatives/quotes_SOLF0:USTF0_20250131
["timestamp","ask_amount","ask_price","bid_price","bid_amount"]
[1738332855937,11.28757627,239.28,239.17,1.4298]
[1738332856133,11.31478338,239.28,239.23,0.02973868]
[1738332856333,11.28757627,239.25,239.23,0.02973868]
[1738332860636,11.28757627,239.25,239.23,4.20993868]
[1738332861143,11.28757627,239.25,239.23,0.02973868]
[1738332861343,11.28757627,239.25,239.24,4.1801]
[1738332861643,2.66,239.27,239.23,0.02973868]
[1738332861845,2.66,239.27,239.25,4.1798]
[1738332862041,11.31478338,239.28,239.23,0.02973868]
[1738332862241,2.68720711,239.28,239.24,4.18]
[1738332862539,0.02720711,239.28,239.23,0.02973868]
[1738332862939,0.02720711,239.28,239.27,4.1795]
[1738332865746,0.02720711,239.28,239.23,0.02973868]
[1738332866846,0.02720711,239.28,239.27,4.1795]
[1738332869545,0.02720711,239.28,239.25,4.1798]
[1738332869849,0.02720711,239.28,239.23,0.02973868]
[1738332870750,0.02720711,239.28,239.26,4.1797]
[1738332872051,0.02720711,239.28,239.27,4.1795]
[1738332874049,0.02720711,239.28,239.23,0.02973868]
[1738332874050,11.31478338,239.28,239.23,0.02973868]
[1738332874249,11.28757627,239.24,239.23,0.02973868]
[1738332876452,15.46757627,239.24,239.23,0.02973868]
[1738332876653,11.28757627,239.24,239.23,0.02973868]
[1738332879155,0.02720711,239.28,239.23,0.02973868]
[1738332879349,11.28757627,239.36,239.23,0.02973868]
[1738332879653,11.28757627,239.39,239.22,11.28757627]
[1738332879854,13.94757627,239.39,239.22,11.28757627]
[1738332880049,18.12507627,239.39,239.22,11.28757627]
[1738332880455,13.94757627,239.39,239.22,11.28757627]
[1738332880754,0.02855295,239.33,239.28,0.0313832]
[1738332882053,0.02855295,239.33,239.3,4.179]
[1738332882557,0.02855295,239.33,239.28,0.0313832]
[1738332882855,0.02855295,239.33,239.31,4.1788]
[1738332883661,0.02855295,239.33,239.32,4.1786]
[1738332884559,11.28757627,239.42,239.38,4.1776]
[1738332884761,13.94757627,239.42,239.38,4.1776]
[1738332885056,11.28757627,239.42,239.3,1.4212]
[1738332885860,0.03051985,239.38,239.37,4.1778]
[1738332887657,11.28757627,239.45,239.34,0.03111866]
[1738332887959,11.28757627,239.45,239.31,11.28757627]
[1738332888254,11.28757627,239.45,239.44,4.1766]
[1738332888459,13.94757627,239.48,239.44,4.1766]
[1738332888857,11.31927275,239.48,239.45,4.1763]
[1738332889158,2.68,239.47,239.3,1.4212]
[1738332889353,11.28757627,239.38,239.34,4.1783]
[1738332889559,11.28757627,239.38,239.3,1.4212]
[1738332889760,11.28757627,239.35,239.29,1.3412]
[1738332890361,0.02719292,239.34,239.3,0.0313543]
[1738332890759,0.02719292,239.34,239.3,4.2101543]
[1738332892563,4.20549292,239.34,239.3,0.0313543]
[1738332892758,11.28757627,239.32,239.3,0.0313543]
[1738332893862,15.46627627,239.32,239.3,0.0313543]
[1738332894061,11.28757627,239.32,239.3,0.0313543]
[1738332895669,0.02719292,239.34,239.3,0.0313543]
[1738332896166,0.02719292,239.34,239.3,4.2103543]
[1738332896369,11.28757627,239.32,239.3,0.0313543]
[1738332900370,0.02719292,239.34,239.3,0.0313543]
[1738332901370,11.28757627,239.32,239.3,0.0313543]
[1738332902373,15.46627627,239.32,239.3,0.0313543]
[1738332902765,11.28757627,239.32,239.3,0.0313543]
[1738332902967,4.1796,239.27,239.22,4.1804]
[1738332903271,11.28757627,239.23,239.2,1.3805]
[1738332903472,11.28757627,239.23,239.16,1.3562]
[1738332903772,11.28757627,239.23,239.17,4.1811]
[1738332903968,0.02922212,239.22,239.18,0.02761635]
[1738332905269,11.28757627,239.2,239.0,11.28757627]
[1738332905474,11.28757627,239.18,239.04,2.7435]
[1738332905773,11.28757627,239.21,239.14,4.1818]
[1738332906176,11.28757627,239.21,239.06,11.28757627]
[1738332906474,0.02657608,239.16,239.11,0.02885672]
[1738332908177,11.28757627,239.21,239.17,4.1813]
[1738332908372,4.1804,239.23,239.17,4.1813]
[1738332908574,4.1804,239.23,239.09,11.28757627]
[1738332908773,11.28757627,239.24,239.09,11.28757627]
[1738332909282,11.28757627,239.27,239.22,4.1803]
[1738332909467,4.1799,239.25,239.14,0.02997965]
[1738332909665,11.28757627,239.24,239.09,11.28757627]
[1738332909875,11.28757627,239.24,239.17,0.03084411]
[1738332910079,0.02991662,239.19,239.17,0.03084411]
[1738332910776,0.02991662,239.19,239.17,4.21204411]
[1738332911574,0.02991662,239.19,239.17,0.03084411]
[1738332914678,11.28757627,239.18,239.17,0.03084411]
[1738332914872,15.46867627,239.18,239.17,0.03084411]
[1738332915073,11.28757627,239.18,239.17,0.03084411]
[1738332918175,11.28757627,239.18,239.05,1.4522]
[1738332918474,0.7065,239.26,239.05,1.4522]
[1738332918475,11.28757627,239.14,239.05,1.4522]
[1738332919078,4.182,239.13,239.06,4.183]
[1738332919273,4.182,239.13,239.05,1.4522]
[1738332919472,0.03161805,239.12,239.07,0.03017289]
[1738332919771,0.03161805,239.12,239.07,4.21307289]
[1738332920176,0.03161805,239.12,239.07,0.03017289]
[1738332920982,0.03161805,239.12,239.1,4.1824]
[1738332922184,0.03161805,239.12,239.11,4.1823]
[1738332922379,0.03161805,239.12,239.07,0.03017289]
[1738332923080,0.03161805,239.12,239.11,4.1823]
[1738332923287,14.00757627,239.2,239.07,0.03017289]
[1738332923582,11.28757627,239.23,239.08,11.28757627]
[1738332923782,14.00757627,239.23,239.08,11.28757627]
[1738332924382,4.1807,239.21,239.16,4.1814]
[1738332924584,0.02857619,239.18,239.16,4.1814]
[1738332926987,0.02857619,239.18,239.15,4.1816]
[1738332927287,0.02857619,239.18,239.13,0.02702621]
[1738332928583,7.25426548,239.17,239.13,0.02702621]
[1738332929483,7.25426548,239.17,239.16,4.1814]
[1738332929891,0.02857619,239.18,239.13,0.02702621]
[1738332930488,0.02857619,239.18,239.17,4.1813]
[1738332931690,0.02857619,239.18,239.16,4.1814]
[1738332931988,7.25426548,239.17,239.16,4.1814]
[1738332932190,7.25426548,239.17,239.13,0.02702621]
[1738332932390,7.25426548,239.14,239.13,0.02702621]
[1738332933686,7.25426548,239.16,239.13,0.02702621]
[1738332933890,7.28284167,239.18,239.13,0.02702621]
[1738332934592,7.25426548,239.16,239.14,4.1818]
[1738332934792,7.25426548,239.16,239.13,0.02702621]
[1738332935295,7.25426548,239.16,239.14,4.1816]
[1738332935490,7.25426548,239.16,239.13,0.02702621]
[1738332935690,7.28284167,239.18,239.13,0.02702621]
[1738332936393,7.28284167,239.18,239.14,4.1817]
[1738332936591,7.28284167,239.18,239.13,0.02702621]
[1738332937083,7.28284167,239.18,239.14,4.1817]
[1738332937286,7.25426548,239.16,239.13,0.02702621]
[1738332937688,7.25426548,239.14,239.13,0.02702621]
[1738332939693,7.25426548,239.14,239.13,4.20902621]
[1738332941295,7.25426548,239.14,239.13,0.02702621]
[1738332943099,0.02857619,239.18,239.17,4.1813]
[1738332945094,7.25426548,239.21,239.2,4.1807]
[1738332945290,7.25426548,239.25,239.17,7.25426548]
[1738332945491,5.68837933,239.29,239.28,4.1794]
[1738332946399,5.68837933,239.29,239.26,0.03193805]
[1738332946601,7.25426548,239.27,239.16,7.25426548]
[1738332946901,7.25426548,239.25,239.18,7.25426548]
[1738332947096,7.25426548,239.25,239.19,0.02895975]
[1738332947497,0.0275677,239.24,239.23,4.1802]
[1738332948795,7.25426548,239.31,239.22,7.25426548]
[1738332948995,7.25426548,239.31,239.25,7.25426548]
[1738332949405,7.25426548,239.31,239.29,4.1791]
[1738332949604,7.25426548,239.33,239.25,7.25426548]
[1738332949804,2.72,239.34,239.27,7.25426548]
[1738332949999,0.02730216,239.31,239.27,7.28473735]
[1738332950499,0.02730216,239.31,239.3,4.179]
[1738332954002,11.31880843,239.38,239.27,0.03047187]
[1738332954209,82.8,239.42,239.3,11.31880843]
[1738332954603,82.8,239.42,239.33,4.1784]
[1738332954800,82.8,239.42,239.3,11.31880843]
[1738332955310,0.0280481,239.38,239.34,0.03211841]
[1738332955897,0.0280481,239.38,239.37,4.1778]
[1738332956998,2.7,239.46,239.35,1.4383]
[1738332957197,11.31880843,239.48,239.35,1.4383]
[1738332957508,4.176,239.47,239.42,4.1768]
[1738332957707,4.176,239.47,239.35,1.4383]
[1738332957908,14.01880843,239.48,239.35,1.4383]
[1738332958112,18.19470843,239.48,239.43,4.1767]
[1738332958408,0.02642557,239.44,239.43,4.1767]
[1738332958609,5.68837933,239.52,239.49,4.1756]
[1738332959002,5.68837933,239.52,239.42,11.31880843]
[1738332959411,115.22896411,239.54,239.39,11.31880843]
[1738332959711,115.22896411,239.54,239.44,0.02863922]
[1738332959901,11.31880843,239.51,239.44,0.02863922]
[1738332960801,4.1759,239.48,239.44,0.02863922]
[1738332961008,11.31880843,239.51,239.44,0.02863922]
[1738332961312,11.31880843,239.51,239.45,4.1764]
[1738332961313,15.49410843,239.51,239.45,4.1764]
[1738332961502,11.31880843,239.51,239.44,0.02863922]
[1738332961705,4.1758,239.49,239.44,0.02863922]
[1738332962105,11.31880843,239.51,239.44,0.02863922]
[1738332962309,4.1756,239.5,239.44,4.20513922]
[1738332962711,11.31880843,239.51,239.44,0.02863922]
[1738332962910,115.22896411,239.54,239.44,0.02863922]
[1738332963105,103.91015568,239.54,239.44,0.02863922]
[1738332963511,108.08515568,239.54,239.44,0.02863922]
[1738332963715,11.31880843,239.57,239.44,0.02863922]
[1738332963905,2.7,239.58,239.45,11.31880843]
[1738332964109,2.7,239.58,239.54,4.1748]
[1738332964608,2.7,239.58,239.54,0.02846154]
[1738332965006,6.874,239.59,239.54,0.02846154]
[1738332965402,4.1741,239.58,239.54,0.02846154]
[1738332965605,19.91058667,239.63,239.54,0.02846154]
[1738332965812,2.7,239.59,239.55,4.1746]
[1738332966012,2.7,239.59,239.54,0.02846154]
[1738332966408,4.1741,239.58,239.54,0.02846154]
[1738332967212,19.91058667,239.63,239.54,0.02846154]
[1738332967507,3.45314321,239.62,239.54,0.02846154]
[1738332967704,0.75314321,239.61,239.54,0.02846154]
[1738332967911,2.7,239.62,239.54,0.02846154]
[1738332968412,4.174,239.59,239.54,0.02846154]
[1738332970611,11.31880843,239.57,239.45,1.4413]
[1738332970813,11.31880843,239.54,239.4,1.3775]
[1738332971012,11.31880843,239.5,239.4,1.3775]
[1738332971314,15.49430843,239.5,239.45,4.1764]
[1738332971501,15.49430843,239.5,239.4,1.3775]
[1738332971709,4.1758,239.49,239.43,4.1767]
[1738332971909,0.03191212,239.47,239.43,0.027747]
[1738332973913,0.03191212,239.47,239.44,4.1766]
[1738332974416,0.03191212,239.47,239.43,0.027747]
[1738332975414,0.03191212,239.47,239.46,4.1762]
[1738332976217,2.7,239.54,239.51,4.1753]
[1738332976411,2.7,239.54,239.45,11.31880843]
[1738332976916,4.1746,239.55,239.46,2.8103]
[1738332977510,4.1746,239.55,239.37,1.3246]
[1738332977511,11.31880843,239.56,239.48,0.03130891]
[1738332978009,4.1757,239.49,239.48,0.03130891]
[1738332981312,4.1765,239.45,239.38,4.1775]
[1738332981511,14.01880843,239.46,239.38,4.1775]
[1738332982205,4.1766,239.44,239.38,4.1775]
[1738332982416,14.01880843,239.46,239.39,4.1774]
[1738332982608,0.03062596,239.43,239.39,4.20508626]
[1738332982914,0.03062596,239.43,239.4,4.1772]
[1738332984520,0.03062596,239.43,239.42,4.1769]
[1738332985416,6.8751,239.53,239.47,4.176]
[1738332985618,11.31880843,239.58,239.42,11.31880843]
[1738332985818,3.4550912,239.57,239.45,11.31880843]
[1738332986021,2.7,239.57,239.45,11.31880843]
[1738332986317,4.1745,239.56,239.45,11.31880843]
[1738332986517,2.7,239.57,239.49,0.03186424]
[1738332986916,4.1746,239.55,239.49,0.03186424]
[1738332987220,11.31880843,239.55,239.49,0.03186424]
[1738332987413,4.1753,239.52,239.49,0.03186424]
[1738332990416,4.1754,239.51,239.49,0.03186424]
[1738332991520,11.31880843,239.55,239.49,0.03186424]
[1738332991718,22.63761686,239.52,239.38,1.3663]
[1738332991920,11.31880843,239.46,239.37,1.3246]
[1738332992318,11.31880843,239.43,239.31,1.4448]
[1738332992513,11.31880843,239.43,239.31,2.8125]
[1738332992917,0.02979024,239.39,239.35,0.02886394]
[1738332993418,0.02979024,239.39,239.35,4.20686394]
[1738332993817,0.02979024,239.39,239.35,0.02886394]
[1738332994016,0.02979024,239.39,239.36,4.178]
[1738332995718,0.02979024,239.39,239.35,0.02886394]
[1738332995918,4.1779,239.37,239.35,0.02886394]
[1738332996521,4.1776,239.38,239.35,0.02886394]
[1738332996822,0.02979024,239.39,239.35,0.02886394]
[1738332997623,11.31880843,239.37,239.35,0.02886394]
[1738332997824,11.31880843,239.37,239.27,4.1794]
[1738332998022,11.31880843,239.31,239.22,1.315]
[1738332998220,15.49780843,239.31,239.24,4.18]
[1738332998417,2.68,239.33,239.22,1.315]
[1738332998926,0.03119427,239.3,239.25,0.02831764]
[1738333000822,4.21039427,239.3,239.25,0.02831764]
[1738333001419,0.03119427,239.3,239.25,0.02831764]
[1738333001825,4.1795,239.28,239.25,0.02831764]
[1738333002027,0.03119427,239.3,239.25,0.02831764]
[1738333002419,4.1796,239.27,239.25,0.02831764]
[1738333003117,4.1797,239.26,239.25,0.02831764]
[1738333003321,11.31880843,239.28,239.14,1.4493]
[1738333003518,11.31880843,239.24,239.14,1.4493]
[1738333004628,0.02916092,239.21,239.17,0.0286066]
[1738333005829,11.34796935,239.21,239.17,0.0286066]
[1738333006727,15.52856935,239.21,239.17,0.0286066]
[1738333007933,0.02916092,239.21,239.19,4.1809]
[1738333008738,0.02916092,239.21,239.17,4.2097066]
[1738333011042,0.02916092,239.21,239.17,0.0286066]
[1738333012538,4.20976092,239.21,239.17,0.0286066]
[1738333013641,0.02916092,239.21,239.2,4.1808]
[1738333014140,0.02916092,239.21,239.17,0.0286066]
[1738333015641,0.02916092,239.21,239.17,4.2099066]
[1738333016239,0.02916092,239.21,239.17,0.0286066]
[1738333016435,4.20976092,239.21,239.17,0.0286066]
[1738333016645,0.02916092,239.21,239.17,0.0286066]
[1738333017538,0.02916092,239.21,239.2,4.1808]
[1738333021745,11.31880843,239.34,239.27,4.1795]
[1738333021939,2.68,239.33,239.19,11.31880843]
[1738333022441,6.8586,239.33,239.27,4.1795]
[1738333022648,2.68,239.33,239.19,11.31880843]
[1738333022848,2.68,239.33,239.29,4.1791]
[1738333023048,0.03146916,239.32,239.29,4.1791]
[1738333023343,0.03146916,239.32,239.28,0.02723797]
[1738333023642,0.03146916,239.32,239.31,4.1788]
[1738333025147,2.68,239.41,239.28,11.3460464]
[1738333025449,2.68,239.41,239.28,11.31880843]
[1738333025652,2.68,239.41,239.35,4.1781]
[1738333025952,94.03880843,239.43,239.35,4.1781]
[1738333026149,11.31880843,239.4,239.25,11.31880843]
[1738333026344,11.31880843,239.37,239.25,11.31880843]
[1738333026646,11.31880843,239.37,239.3,0.02932284]
[1738333026844,0.02647483,239.33,239.3,0.02932284]
[1738333027042,11.31880843,239.31,239.3,0.02932284]
[1738333028054,0.03158817,239.33,239.3,0.02932284]
[1738333028252,4.21008817,239.33,239.3,0.02932284]
[1738333029050,11.31880843,239.31,239.3,0.02932284]
[1738333029255,13.99880843,239.31,239.17,2.6771]
[1738333029455,11.31880843,239.25,239.17,2.6771]
[1738333029655,11.31880843,239.25,239.15,4.1815]
[1738333030057,4.1802,239.24,239.1,11.31880843]
[1738333030257,4.1802,239.24,239.11,1.3793]
[1738333030456,0.02885742,239.19,239.15,0.03162405]
[1738333030647,0.02885742,239.19,239.18,4.1811]
[1738333030851,11.31880843,239.28,239.18,4.1811]
[1738333031050,0.02780008,239.21,239.18,4.1811]
[1738333031251,0.02780008,239.21,239.16,0.03118346]
[1738333031453,0.02780008,239.21,239.2,4.1808]
[1738333033052,13.99880843,239.31,239.16,11.34999189]
[1738333033252,2.68,239.33,239.22,11.31880843]
[1738333033457,2.68,239.33,239.23,2.7015]
[1738333033657,2.68,239.33,239.27,4.1795]
[1738333033854,2.68,239.33,239.23,2.7015]
[1738333034259,0.03049479,239.3,239.26,0.02904537]
[1738333035162,0.03049479,239.3,239.29,4.1791]
[1738333035759,2.68,239.38,239.26,0.02904537]
[1738333035760,6.8576,239.38,239.26,0.02904537]
[1738333035958,2.68,239.41,239.28,11.31880843]
[1738333036358,4.177,239.42,239.35,4.1781]
[1738333036659,82.72,239.43,239.34,11.31880843]
[1738333036860,82.72,239.43,239.35,2.8301]
[1738333037060,82.72,239.43,239.36,0.03179205]
[1738333038469,82.72,239.43,239.37,4.1776]
[1738333038763,82.72,239.43,239.36,0.03179205]
[1738333038967,5.68837933,239.46,239.36,0.03179205]
[1738333039463,2.68,239.48,239.36,0.03179205]
[1738333040065,15.49450843,239.49,239.36,0.03179205]
[1738333040258,4.1757,239.49,239.37,11.31880843]
[1738333040461,4.1757,239.49,239.42,4.1768]
[1738333040968,4.1757,239.49,239.43,0.02676325]
[1738333042367,4.1766,239.44,239.43,0.02676325]
[1738333043164,15.49520843,239.45,239.43,0.02676325]
[1738333043664,11.31880843,239.58,239.43,11.34557168]
[1738333043868,0.75726304,239.55,239.43,11.34557168]
[1738333044067,0.75726304,239.55,239.44,1.3115]
[1738333044561,11.31880843,239.58,239.45,1.3209]
[1738333045166,4.1744,239.57,239.49,4.1756]
[1738333045361,4.1744,239.57,239.48,0.02720377]
[1738333045561,0.75684779,239.56,239.48,0.02720377]
[1738333045768,11.31880843,239.61,239.48,0.02720377]
[1738333045966,11.31880843,239.58,239.46,1.4323]
[1738333046169,11.31880843,239.58,239.52,0.02847874]
[1738333046569,18.08274139,239.59,239.52,0.02847874]
[1738333046868,0.75723582,239.58,239.52,0.02847874]
[1738333047767,4.1744,239.57,239.52,0.02847874]
[1738333047968,18.08274139,239.59,239.52,0.02847874]
[1738333048172,0.75728314,239.58,239.52,0.02847874]
[1738333048773,4.1749,239.54,239.52,0.02847874]
[1738333048975,18.08274139,239.59,239.52,0.02847874]
[1738333049175,0.75727309,239.58,239.52,0.02847874]
[1738333049376,4.1747,239.55,239.52,0.02847874]
[1738333050874,4.1748,239.54,239.52,0.02847874]
[1738333051076,18.08274139,239.59,239.52,0.02847874]
[1738333051276,0.75665654,239.58,239.52,0.02847874]
[1738333051478,4.1747,239.55,239.52,0.02847874]
[1738333052277,4.1743,239.57,239.52,0.02847874]
[1738333052472,2.7,239.6,239.52,0.02847874]
[1738333052678,3.45673076,239.59,239.52,4.20367874]
[1738333052868,0.75673076,239.58,239.52,0.02847874]
[1738333053280,6.8541,239.59,239.53,4.175]
[1738333054077,6.854,239.59,239.53,4.175]
[1738333055282,0.75674937,239.58,239.52,0.02847874]
[1738333055582,2.68,239.59,239.52,0.02847874]
[1738333056481,4.1741,239.58,239.53,4.1749]
[1738333056684,18.08274139,239.67,239.52,0.02847874]
[1738333056980,3.43679666,239.66,239.48,18.08274139]
[1738333057180,0.75679666,239.65,239.57,0.03109366]
[1738333057674,4.1734,239.63,239.57,4.20519366]
[1738333057984,2.68,239.66,239.57,0.03109366]
[1738333058279,0.75695461,239.65,239.57,0.03109366]
[1738333058483,2.68,239.67,239.52,18.08274139]
[1738333058680,0.75698801,239.66,239.59,0.03099137]
[1738333060786,4.1729,239.65,239.59,4.20489137]
[1738333061181,2.68,239.67,239.59,0.03099137]
[1738333061378,0.75724404,239.66,239.59,0.03099137]
[1738333062887,4.1731,239.64,239.59,0.03099137]
[1738333063284,4.1736,239.61,239.59,0.03099137]
[1738333063687,20.76274139,239.67,239.59,0.03099137]
[1738333063890,4.1738,239.6,239.59,0.03099137]
[1738333064188,20.76274139,239.67,239.59,0.03099137]
[1738333064386,0.75765201,239.66,239.59,0.03099137]
[1738333064588,4.1736,239.62,239.59,0.03099137]
[1738333064789,20.76274139,239.67,239.59,0.03099137]
[1738333065088,0.75761247,239.66,239.59,0.03099137]
[1738333065490,4.1738,239.6,239.59,0.03099137]
[1738333067781,4.1743,239.57,239.51,4.1753]
[1738333068987,0.03182459,239.56,239.53,4.175]
[1738333069194,0.03182459,239.56,239.52,0.02945342]
[1738333069889,0.03182459,239.56,239.52,4.20455342]
[1738333070090,0.03182459,239.56,239.52,0.02945342]
[1738333070487,4.1748,239.55,239.52,0.02945342]
[1738333070889,0.03182459,239.56,239.52,0.02945342]
[1738333071290,4.1747,239.55,239.52,0.02945342]
[1738333071790,0.03182459,239.56,239.52,0.02945342]
[1738333071987,4.1748,239.54,239.52,0.02945342]
[1738333075295,4.1747,239.55,239.52,0.02945342]
[1738333076299,0.03182459,239.56,239.52,0.02945342]
[1738333076494,4.175,239.53,239.52,0.02945342]
[1738333080104,4.1759,239.48,239.38,14.07129791]
[1738333080301,4.1759,239.48,239.38,2.7728]
[1738333080503,11.29849791,239.5,239.38,2.7728]
[1738333080699,4.1757,239.49,239.38,2.7728]
[1738333081094,0.02884544,239.46,239.41,0.02946128]
[1738333081901,4.1765,239.45,239.41,0.02946128]
[1738333082096,0.02884544,239.46,239.41,0.02946128]
[1738333083006,0.02884544,239.46,239.45,4.1764]
[1738333089012,4.175,239.54,239.5,4.1755]
[1738333089304,2.66,239.55,239.5,4.1755]
[1738333090207,2.68824817,239.55,239.5,4.20453265]
[1738333090409,6.86294817,239.55,239.5,4.20453265]
[1738333090600,4.20294817,239.55,239.5,4.20453265]
[1738333091310,0.02824817,239.55,239.5,4.20453265]
[1738333091500,0.02824817,239.55,239.5,0.02903265]
[1738333092010,4.20294817,239.55,239.5,0.02903265]
[1738333092407,0.02824817,239.55,239.5,0.02903265]
[1738333092610,4.175,239.53,239.5,0.02903265]
[1738333092905,11.29849791,239.53,239.5,0.02903265]
[1738333093111,4.1753,239.52,239.5,0.02903265]
[1738333093412,11.29849791,239.53,239.5,0.02903265]
[1738333093910,4.1753,239.51,239.5,0.02903265]
[1738333095214,4.1758,239.49,239.38,2.7728]
[1738333096010,11.29849791,239.5,239.38,2.7728]
[1738333096217,13.95849791,239.56,239.41,11.29849791]
[1738333096411,0.02954652,239.46,239.44,11.29849791]
[1738333096607,4.1751,239.53,239.41,11.29849791]
[1738333096815,11.29849791,239.56,239.41,11.29849791]
[1738333097011,2.66,239.57,239.44,11.29849791]
[1738333097211,0.76001354,239.56,239.5,4.1755]
[1738333097812,0.02650453,239.55,239.51,0.02731989]
[1738333098815,4.20120453,239.55,239.51,0.02731989]
[1738333099416,4.175,239.53,239.51,0.02731989]
[1738333099619,0.02650453,239.55,239.51,0.02731989]
[1738333101721,4.1751,239.53,239.51,0.02731989]
[1738333101917,11.29849791,239.53,239.51,0.02731989]
[1738333102222,4.1752,239.52,239.51,0.02731989]
[1738333103916,15.47349791,239.53,239.51,0.02731989]
[1738333104224,0.02650453,239.55,239.51,0.02731989]
[1738333104425,4.20120453,239.55,239.51,0.02731989]
[1738333107128,4.1748,239.54,239.51,0.02731989]
[1738333107327,0.02650453,239.55,239.51,0.02731989]
[1738333107724,4.1752,239.52,239.51,0.02731989]
[1738333108228,4.1761,239.47,239.38,2.7728]
[1738333109425,0.02693407,239.45,239.4,0.02754712]
[1738333109929,0.02693407,239.45,239.41,4.1769]
[1738333110325,0.02693407,239.45,239.44,4.1766]
[1738333110927,0.02693407,239.45,239.43,4.1767]
[1738333113133,0.02693407,239.45,239.4,0.02754712]
[1738333113334,0.02693407,239.45,239.44,4.1766]
[1738333115234,2.66,239.5,239.47,4.176]
[1738333115436,5.68837933,239.56,239.41,11.29849791]
[1738333115632,2.66,239.55,239.41,11.29849791]
[1738333116333,2.66,239.55,239.5,4.1755]
[1738333116535,2.69083372,239.55,239.5,4.1755]
[1738333116736,2.69083372,239.55,239.46,0.02975502]
[1738333117834,6.86553372,239.55,239.49,4.1757]
[1738333119338,2.69083372,239.55,239.46,0.02975502]
[1738333119632,0.03083372,239.55,239.46,0.02975502]
[1738333119938,0.03083372,239.55,239.52,4.175]
[1738333120237,0.03083372,239.55,239.47,14.03859791]
[1738333120536,0.03083372,239.55,239.52,7.22999266]
[1738333121135,5.68837933,239.59,239.52,7.22999266]
[1738333121537,5.68837933,239.59,239.56,4.1744]
[1738333122333,5.68837933,239.59,239.52,7.22999266]
[1738333122538,42.63789606,239.65,239.51,0.03026292]
[1738333122839,42.63789606,239.65,239.53,11.2944413]
[1738333122840,0.76282132,239.64,239.53,11.2944413]
[1738333123039,0.76282132,239.64,239.6,4.1737]
[1738333123241,31.34345476,239.65,239.6,4.1737]
[1738333123444,31.34345476,239.65,239.56,0.0293645]
[1738333123633,35.51635476,239.65,239.6,4.1737]
[1738333123834,31.34345476,239.65,239.6,4.1737]
[1738333125041,31.34345476,239.65,239.59,4.1739]
[1738333125243,12.76293743,239.65,239.59,4.1739]
[1738333125536,19.88437873,239.65,239.57,1.4505]
[1738333126741,19.88437873,239.65,239.6,4.1738]
[1738333126942,19.88437873,239.65,239.57,1.4505]
[1738333127337,4.1735,239.62,239.57,1.4505]
[1738333127744,8.58993743,239.65,239.6,4.1737]
[1738333127944,8.58993743,239.65,239.57,1.4505]
[1738333128538,8.58993743,239.65,239.62,4.1734]
[1738333129842,6.8323,239.69,239.63,4.1732]
[1738333130043,0.76286829,239.68,239.63,4.1732]
[1738333130645,0.76286829,239.68,239.65,4.1728]
[1738333130836,13.9544413,239.71,239.61,0.02907785]
[1738333131037,0.76238923,239.7,239.61,0.02907785]
[1738333131746,25.41351733,239.72,239.61,0.02907785]
[1738333131944,0.76236313,239.71,239.61,0.02907785]
[1738333132545,0.76236313,239.71,239.64,4.1731]
[1738333132746,0.76236313,239.71,239.61,0.02907785]
[1738333133650,4.93426313,239.71,239.65,4.1727]
[1738333133849,13.9544413,239.74,239.61,0.02907785]
[1738333134050,0.76218243,239.73,239.61,0.02907785]
[1738333134747,0.76200587,239.72,239.61,0.02907785]
[1738333135052,82.74,239.75,239.65,11.2944413]
[1738333135240,4.1711,239.76,239.66,4.1149]
[1738333135440,4.1711,239.76,239.68,0.0269391]
[1738333135644,5.68837933,239.79,239.68,0.0269391]
[1738333135847,9.85887933,239.79,239.74,4.1713]
[1738333136052,5.68837933,239.79,239.66,4.1149]
[1738333136349,5.68837933,239.79,239.74,0.03075206]
[1738333136749,5.68837933,239.79,239.74,4.20205206]
[1738333137350,9.85897933,239.79,239.74,4.20205206]
[1738333137651,5.68837933,239.79,239.74,4.20205206]
[1738333137951,11.2944413,239.81,239.74,4.20205206]
[1738333138156,4.1705,239.8,239.75,4.1712]
[1738333139154,11.2944413,239.81,239.75,4.1712]
[1738333140156,11.2944413,239.78,239.74,0.03075206]
[1738333140450,11.2944413,239.75,239.66,4.1149]
[1738333140651,11.2944413,239.72,239.59,11.2944413]
[1738333140852,11.2944413,239.69,239.6,1.3848]
[1738333141055,11.2944413,239.69,239.62,4.1733]
[1738333141353,11.2944413,239.66,239.6,1.3848]
[1738333141553,11.2944413,239.66,239.57,2.801]
[1738333141749,4.1731,239.64,239.61,0.0298276]
[1738333141953,0.02752977,239.65,239.61,0.0298276]
[1738333142255,0.02752977,239.65,239.63,4.1732]
[1738333142955,0.02752977,239.65,239.61,0.0298276]